fUSD/lending_fUSD_20250618
["ID","MTS","AMOUNT","RATE_DAILY","PERIOD"]
[366389140,1750228241552,-150.0,0.00016438,2]
[366389142,1750228241563,-490.0,0.00016438,2]
[366389144,1750228241572,-1407.43,0.00016438,2]
[366389146,1750228241582,-490.0,0.00016438,2]
[366389148,1750228241591,-490.0,0.00016438,2]
[366389150,1750228241600,-490.0,0.00016438,2]
[366389152,1750228241610,-801.35,0.00016438,2]
[366389154,1750228241619,-897.75,0.00016438,2]
[366389156,1750228241629,-490.0,0.00016438,2]
[366389158,1750228241638,-490.0,0.00016438,2]
[366389160,1750228241647,-524.26,0.00016438,2]
[366389162,1750228241656,-564.16,0.00016438,2]
[366389164,1750228241666,-490.0,0.00016438,2]
[366389166,1750228241676,-490.0,0.00016438,2]
[366389168,1750228241685,-490.0,0.00016438,2]
[366389170,1750228241694,-490.0,0.00016438,2]
[366389172,1750228241704,-1565.9,0.00016438,2]
[366389174,1750228241712,-494.00947969,0.00016438,2]
[366389175,1750228241721,-490.0,0.00016438,2]
[366389176,1750228241730,-592.18,0.00016438,2]
[366389177,1750228241739,-901.34,0.00016438,2]
[366389178,1750228241749,-490.0,0.00016438,2]
[366389179,1750228241758,-490.0,0.00016438,2]
[366389180,1750228241768,-418.60019253,0.00016438,2]
[366389181,1750228241777,-490.0,0.00016438,2]
[366389182,1750228241786,-1000.0,0.00016438,2]
[366389183,1750228241795,-500.38105824,0.00016438,2]
[366389184,1750228241805,-151.0,0.00016438,2]
[366389186,1750228241815,-490.0,0.00016438,2]
[366389188,1750228241824,-1143.38,0.00016438,2]
[366389190,1750228241833,-490.0,0.00016438,2]
[366389192,1750228241843,-490.0,0.00016438,2]
[366389194,1750228241852,-490.0,0.00016438,2]
[366389196,1750228241862,-890.59,0.00016438,2]
[366389198,1750228241871,-490.0,0.00016438,2]
[366389200,1750228241880,-490.0,0.00016438,2]
[366389202,1750228241890,-490.0,0.00016438,2]
[366389203,1750228241899,-1158.69,0.00016438,2]
[366389205,1750228241908,-490.0,0.00016438,2]
[366389207,1750228241918,-563.05,0.00016438,2]
[366389209,1750228241927,-1200.34,0.00016438,2]
[366389211,1750228241940,-490.0,0.00016438,2]
[366389213,1750228241949,-688.55,0.00016438,2]
[366389215,1750228241958,-377.86633215,0.00016438,2]
[366389217,1750228241968,-1353.23,0.00016438,2]
[366389219,1750228241978,-490.0,0.00016438,2]
[366389221,1750228241988,-281.09429394,0.00016438,2]
[366389223,1750228241997,-1105.26,0.00016438,2]
[366389225,1750228242006,-538.51,0.00016438,2]
[366389227,1750228242016,-490.0,0.00016438,2]
[366389229,1750228242025,-493.0722488,0.00016438,2]
[366389231,1750228242035,-490.0,0.00016438,2]
[366389233,1750228242044,-490.0,0.00016438,2]
[366389235,1750228242053,-1122.3,0.00016438,2]
[366389237,1750228242063,-490.0,0.00016438,2]
[366389239,1750228242072,-151.0,0.00016438,2]
[366389241,1750228242081,-151.0,0.00016438,2]
[366389243,1750228242090,-151.0,0.00016438,2]
[366389245,1750228242099,-206.016068,0.00016438,2]
[366389247,1750228242108,-201.36789541,0.00016438,2]
[366389249,1750228242117,-490.0,0.00016438,2]
[366389251,1750228242126,-490.0,0.00016438,2]
[366389253,1750228242135,-490.0,0.00016438,2]
[366389255,1750228242144,-490.0,0.00016438,2]
[366389257,1750228242154,-490.0,0.00016438,2]
[366389259,1750228242163,-490.0,0.00016438,2]
[366389261,1750228242172,-490.0,0.00016438,2]
[366389263,1750228242182,-490.0,0.00016438,2]
[366389265,1750228242192,-151.0,0.00016438,2]
[366389267,1750228242202,-490.0,0.00016438,2]
[366389269,1750228242212,-151.0,0.00016438,2]
[366389271,1750228242221,-490.0,0.00016438,2]
[366389273,1750228242230,-490.0,0.00016438,2]
[366389275,1750228242240,-151.0,0.00016438,2]
[366389277,1750228242250,-151.0,0.00016438,2]
[366389279,1750228242261,-151.0,0.00016438,2]
[366389281,1750228242271,-1400.53,0.00016438,2]
[366389283,1750228242280,-611.73,0.00016438,2]
[366389285,1750228242289,-151.0,0.00016438,2]
[366389287,1750228242299,-151.0,0.00016438,2]
[366389289,1750228242309,-151.0,0.00016438,2]
[366389291,1750228242319,-490.0,0.00016438,2]
[366389293,1750228242328,-490.0,0.00016438,2]
[366389295,1750228242338,-490.0,0.00016438,2]
[366389297,1750228242347,-547.69539328,0.00016438,2]
[366389299,1750228242357,-490.0,0.00016438,2]
[366389301,1750228242366,-525.85,0.00016438,2]
[366389303,1750228242375,-542.92,0.00016438,2]
[366389305,1750228242385,-783.98,0.00016438,2]
[366389307,1750228242394,-974.44,0.00016438,2]
[366389309,1750228242404,-490.0,0.00016438,2]
[366389311,1750228242413,-580.53,0.00016438,2]
[366389313,1750228242423,-1515.32,0.00016438,2]
[366389315,1750228242432,-1216.73,0.00016438,2]
[366389317,1750228242441,-490.0,0.00016438,2]
[366389319,1750228242450,-1263.87,0.00016438,2]
[366389321,1750228242460,-478.41886507,0.00016438,2]
[366389323,1750228242469,-1197.66,0.00016438,2]
[366389325,1750228242478,-629.02,0.00016438,2]
[366389327,1750228242487,-1262.59,0.00016438,2]
[366389329,1750228242497,-510.65193408,0.00016438,2]
[366389331,1750228242506,-648.57,0.00016438,2]
[366389333,1750228242515,-766.61,0.00016438,2]
[366389335,1750228242523,-490.0,0.00016438,2]
[366389337,1750228242533,-1704.7,0.00016438,2]
[366389339,1750228242542,-158.4014527,0.00016438,2]
[366389341,1750228242551,-490.0,0.00016438,2]
[366389343,1750228242560,-951.16,0.00016438,2]
[366389345,1750228242569,-490.0,0.00016438,2]
[366389347,1750228242579,-490.0,0.00016438,2]
[366389349,1750228242588,-593.23,0.00016438,2]
[366389351,1750228242597,-585.54,0.00016438,2]
[366389353,1750228242607,-1370.21,0.00016438,2]
[366389355,1750228242616,-490.0,0.00016438,2]
[366389357,1750228242625,-1402.84,0.00016438,2]
[366389359,1750228242634,-589.02,0.00016438,2]
[366389361,1750228242644,-494.16349938,0.00016438,2]
[366389363,1750228242653,-1827.76,0.00016438,2]
[366389365,1750228242662,-492.96784616,0.00016438,2]
[366389367,1750228242671,-1044.31,0.00016438,2]
[366389369,1750228242681,-861.52,0.00016438,2]
[366389371,1750228242690,-650.32,0.00016438,2]
[366389373,1750228242700,-490.0,0.00016438,2]
[366389375,1750228242709,-490.0,0.00016438,2]
[366389377,1750228242718,-528.21,0.00016438,2]
[366389379,1750228242727,-490.0,0.00016438,2]
[366389381,1750228242736,-512.98803608,0.00016438,2]
[366389383,1750228242746,-1193.44,0.00016438,2]
[366389385,1750228242755,-495.71197826,0.00016438,2]
[366389387,1750228242764,-490.0,0.00016438,2]
[366389389,1750228242773,-1357.82,0.00016438,2]
[366389391,1750228242783,-490.0,0.00016438,2]
[366389393,1750228242791,-492.62,0.00016438,2]
[366389395,1750228242800,-772.08,0.00016438,2]
[366389397,1750228242810,-803.54,0.00016438,2]
[366389399,1750228242819,-490.0,0.00016438,2]
[366389401,1750228242828,-490.0,0.00016438,2]
[366389403,1750228242838,-1187.52,0.00016438,2]
[366389405,1750228242847,-500.30238234,0.00016438,2]
[366389407,1750228242857,-490.0,0.00016438,2]
[366389409,1750228242867,-445.71274861,0.00016438,2]
[366389411,1750228242876,-490.0,0.00016438,2]
[366389413,1750228242885,-490.0,0.00016438,2]
[366389415,1750228242895,-490.0,0.00016438,2]
[366389434,1750228243059,-1256.6,0.00016438,2]
[366389438,1750228243091,-875.18,0.00016438,2]
[366389440,1750228243101,-1169.32,0.00016438,2]
[366389442,1750228243110,-759.5,0.00016438,2]
[366389446,1750228243120,-2010.11,0.00016438,2]
[366389448,1750228243129,-497.94976279,0.00016438,2]
[366389450,1750228243139,-490.0,0.00016438,2]
[366389452,1750228243148,-151.723763,0.00016438,2]
[366389455,1750228243157,-521.03,0.00016438,2]
[366389458,1750228243167,-645.48,0.00016438,2]
[366389460,1750228243176,-490.0,0.00016438,2]
[366389463,1750228243185,-151.0,0.00016438,2]
[366389465,1750228243194,-151.73746,0.00016438,2]
[366389466,1750228243203,-738.62,0.00016438,2]
[366389467,1750228243212,-490.0,0.00016438,2]
[366389468,1750228243221,-587.6,0.00016438,2]
[366389470,1750228243231,-548.59,0.00016438,2]
[366389471,1750228243239,-490.0,0.00016438,2]
[366389472,1750228243249,-1226.95,0.00016438,2]
[366389473,1750228243259,-557.38,0.00016438,2]
[366389474,1750228243269,-490.0,0.00016438,2]
[366389475,1750228243279,-490.0,0.00016438,2]
[366389476,1750228243288,-490.0,0.00016438,2]
[366389477,1750228243298,-490.0,0.00016438,2]
[366389478,1750228243308,-486.7870348,0.00016438,2]
[366389480,1750228243318,-967.69,0.00016438,2]
[366389482,1750228243328,-910.354394,0.00016438,2]
[366389483,1750228243338,-990.25,0.00016438,2]
[366389484,1750228243348,-490.0,0.00016438,2]
[366389485,1750228243358,-490.0,0.00016438,2]
[366389486,1750228243367,-587.45,0.00016438,2]
[366389487,1750228243378,-490.0,0.00016438,2]
[366389488,1750228243388,-151.0,0.00016438,2]
[366389489,1750228243397,-1173.13,0.00016438,2]
[366389490,1750228243407,-151.0,0.00016438,2]
[366389491,1750228243417,-769.24,0.00016438,2]
[366389492,1750228243427,-151.0,0.00016438,2]
[366389493,1750228243436,-490.0,0.00016438,2]
[366389494,1750228243446,-151.0,0.00016438,2]
[366389495,1750228243456,-239.915043,0.00016438,2]
[366389496,1750228243465,-944.05,0.00016438,2]
[366389497,1750228243475,-561.61,0.00016438,2]
[366389498,1750228243485,-490.0,0.00016438,2]
[366389499,1750228243495,-757.49,0.00016438,2]
[366389500,1750228243504,-490.0,0.00016438,2]
[366389501,1750228243514,-1608.15,0.00016438,2]
[366389502,1750228243523,-490.0,0.00016438,2]
[366389503,1750228243534,-490.0,0.00016438,2]
[366389504,1750228243544,-1003.59,0.00016438,2]
[366389505,1750228243554,-151.0,0.00016438,2]
[366389506,1750228243564,-490.0,0.00016438,2]
[366389507,1750228243574,-183.194187,0.00016438,2]
[366389508,1750228243584,-490.0,0.00016438,2]
[366389509,1750228243594,-703.88,0.00016438,2]
[366389510,1750228243604,-491.1695396,0.00016438,2]
[366389511,1750228243613,-580.03,0.00016438,2]
[366389512,1750228243623,-500.0,0.00016438,2]
[366389514,1750228243634,-820.87,0.00016438,2]
[366389515,1750228243643,-490.0,0.00016438,2]
[366389516,1750228243653,-491.81149996,0.00016438,2]
[366389517,1750228243663,-567.22,0.00016438,2]
[366389518,1750228243672,-490.0,0.00016438,2]
[366389519,1750228243681,-490.0,0.00016438,2]
[366389521,1750228243691,-1000.34,0.00016438,2]
[366389523,1750228243700,-492.35016128,0.00016438,2]
[366389525,1750228243710,-490.0,0.00016438,2]
[366389527,1750228243719,-757.28,0.00016438,2]
[366389529,1750228243728,-490.73754827,0.00016438,2]
[366389531,1750228243737,-3053.246112,0.00016438,2]
[366389534,1750228243747,-490.0,0.00016438,2]
[366389536,1750228243757,-490.84069628,0.00016438,2]
[366389538,1750228243766,-490.0,0.00016438,2]
[366389539,1750228243776,-490.0,0.00016438,2]
[366389540,1750228243785,-490.0,0.00016438,2]
[366389541,1750228243795,-160.941803,0.00016438,2]
[366389542,1750228243805,-1942.63,0.00016438,2]
[366389543,1750228243814,-2841.38,0.00016438,2]
[366389544,1750228243824,-493.08960074,0.00016438,2]
[366389545,1750228243834,-490.0,0.00016438,2]
[366389546,1750228243844,-151.0,0.00016438,2]
[366389547,1750228243854,-151.0,0.00016438,2]
[366389548,1750228243864,-848.93,0.00016438,2]
[366389549,1750228243874,-177.003724,0.00016438,2]
[366389550,1750228243884,-490.0,0.00016438,2]
[366389551,1750228243894,-490.0,0.00016438,2]
[366389552,1750228243903,-161.184063,0.00016438,2]
[366389553,1750228243913,-709.03,0.00016438,2]
[366389554,1750228243923,-490.0,0.00016438,2]
[366389555,1750228243937,-906.12,0.00016438,2]
[366389556,1750228243947,-490.0,0.00016438,2]
[366389557,1750228243956,-1187.13,0.00016438,2]
[366389558,1750228243966,-492.89444601,0.00016438,2]
[366389559,1750228243977,-597.9,0.00016438,2]
[366389560,1750228243986,-490.0,0.00016438,2]
[366389561,1750228243996,-490.0,0.00016438,2]
[366389562,1750228244006,-490.0,0.00016438,2]
[366389563,1750228244016,-490.0,0.00016438,2]
[366389564,1750228244026,-151.0,0.00016438,2]
[366389565,1750228244035,-2053.51,0.00016438,2]
[366389566,1750228244046,-160.387695,0.00016438,2]
[366389567,1750228244056,-504.53013409,0.00016438,2]
[366389568,1750228244066,-490.0,0.00016438,2]
[366389569,1750228244076,-490.0,0.00016438,2]
[366389570,1750228244086,-781.79,0.00016438,2]
[366389571,1750228244096,-490.0,0.00016438,2]
[366389572,1750228244106,-210.91343092,0.00016438,2]
[366389573,1750228244115,-490.0,0.00016438,2]
[366389574,1750228244125,-528.41,0.00016438,2]
[366389575,1750228244135,-151.0,0.00016438,2]
[366389576,1750228244146,-151.0,0.00016438,2]
[366389577,1750228244156,-732.44,0.00016438,2]
[366389578,1750228244165,-151.0,0.00016438,2]
[366389579,1750228244175,-553.37,0.00016438,2]
[366389580,1750228244184,-153.153755,0.00016438,2]
[366389581,1750228244194,-1029.71,0.00016438,2]
[366389582,1750228244204,-490.0,0.00016438,2]
[366389583,1750228244214,-490.0,0.00016438,2]
[366389584,1750228244224,-490.0,0.00016438,2]
[366389585,1750228244234,-490.0,0.00016438,2]
[366389586,1750228244243,-533.39,0.00016438,2]
[366389587,1750228244254,-702.2,0.00016438,2]
[366389588,1750228244263,-490.0,0.00016438,2]
[366389589,1750228244273,-490.0,0.00016438,2]
[366389590,1750228244283,-490.0,0.00016438,2]
[366389591,1750228244292,-730.17,0.00016438,2]
[366389592,1750228244302,-152.559455,0.00016438,2]
[366389593,1750228244312,-495.07984079,0.00016438,2]
[366389594,1750228244322,-490.0,0.00016438,2]
[366389595,1750228244332,-490.0,0.00016438,2]
[366389596,1750228244341,-490.0,0.00016438,2]
[366389597,1750228244351,-546.87,0.00016438,2]
[366389598,1750228244361,-1471.12,0.00016438,2]
[366389599,1750228244371,-490.0,0.00016438,2]
[366389600,1750228244381,-151.0,0.00016438,2]
[366389601,1750228244391,-1340.89,0.00016438,2]
[366389603,1750228244401,-151.0,0.00016438,2]
[366389604,1750228244410,-151.0,0.00016438,2]
[366389605,1750228244420,-195.316092,0.00016438,2]
[366389606,1750228244430,-444.89902934,0.00016438,2]
[366389607,1750228244439,-2086.97,0.00016438,2]
[366389608,1750228244449,-489.73005293,0.00016438,2]
[366389609,1750228244459,-400.16507246,0.00016438,2]
[366389610,1750228244469,-490.0,0.00016438,2]
[366389611,1750228244479,-665.94,0.00016438,2]
[366389612,1750228244489,-490.0,0.00016438,2]
[366389613,1750228244499,-490.0,0.00016438,2]
[366389614,1750228244508,-490.0,0.00016438,2]
[366389615,1750228244518,-685.87,0.00016438,2]
[366389616,1750228244528,-490.0,0.00016438,2]
[366389617,1750228244538,-490.0,0.00016438,2]
[366389618,1750228244548,-534.62,0.00016438,2]
[366389619,1750228244557,-763.18,0.00016438,2]
[366389620,1750228244567,-494.55659029,0.00016438,2]
[366389621,1750228244577,-490.0,0.00016438,2]
[366389622,1750228244586,-490.0,0.00016438,2]
[366389623,1750228244595,-494.63486963,0.00016438,2]
[366389624,1750228244604,-490.0,0.00016438,2]
[366389625,1750228244614,-151.0,0.00016438,2]
[366389626,1750228244626,-151.0,0.00016438,2]
[366389627,1750228244635,-151.0,0.00016438,2]
[366389628,1750228244645,-490.0,0.00016438,2]
[366389629,1750228244654,-490.0,0.00016438,2]
[366389630,1750228244663,-151.0,0.00016438,2]
[366389631,1750228244672,-151.0,0.00016438,2]
[366389632,1750228244682,-151.0,0.00016438,2]
[366389633,1750228244692,-151.0,0.00016438,2]
[366389634,1750228244701,-151.0,0.00016438,2]
[366389635,1750228244712,-151.0,0.00016438,2]
[366389636,1750228244721,-490.0,0.00016438,2]
[366389637,1750228244731,-151.0,0.00016438,2]
[366389638,1750228244740,-151.0,0.00016438,2]
[366389639,1750228244749,-151.0,0.00016438,2]
[366389640,1750228244758,-163.3873,0.00016438,2]
[366389641,1750228244770,-490.0,0.00016438,2]
[366389642,1750228244780,-2228.96,0.00016438,2]
[366389643,1750228244792,-241.622317,0.00016438,2]
[366389644,1750228244802,-490.0,0.00016438,2]
[366389645,1750228244812,-241.622317,0.00016438,2]
[366389646,1750228244821,-490.0,0.00016438,2]
[366389647,1750228244831,-241.622317,0.00016438,2]
[366389648,1750228244841,-490.0,0.00016438,2]
[366389649,1750228244851,-241.622317,0.00016438,2]
[366389650,1750228244861,-1681.55,0.00016438,2]
[366389651,1750228244870,-490.0,0.00016438,2]
[366389652,1750228244880,-241.622317,0.00016438,2]
[366389653,1750228244892,-709.77,0.00016438,2]
[366389654,1750228244903,-241.622317,0.00016438,2]
[366389655,1750228244912,-151.0,0.00016438,2]
[366389656,1750228244922,-241.622317,0.00016438,2]
[366389657,1750228244933,-241.622317,0.00016438,2]
[366389658,1750228244944,-151.0,0.00016438,2]
[366389659,1750228244954,-241.622317,0.00016438,2]
[366389660,1750228244963,-151.0,0.00016438,2]
[366389661,1750228244975,-241.622317,0.00016438,2]
[366389662,1750228244984,-152.818703,0.00016438,2]
[366389663,1750228244994,-241.622315,0.00016438,2]
[366389664,1750228245004,-490.0,0.00016438,2]
[366389665,1750228245016,-558.65171475,0.00016438,2]
[366389666,1750228245027,-151.520417,0.00016438,2]
[366389667,1750228245037,-381.89033912,0.00016438,2]
[366389668,1750228245047,-549.2574355,0.00016438,2]
[366389669,1750228245056,-1536.75,0.00016438,2]
[366389670,1750228245066,-570.79,0.00016438,2]
[366389671,1750228245075,-1834.91,0.00016438,2]
[366389672,1750228245085,-496.73250254,0.00016438,2]
[366389673,1750228245094,-1366.99,0.00016438,2]
[366389674,1750228245105,-594.07,0.00016438,2]
[366389675,1750228245114,-746.85,0.00016438,2]
[366389676,1750228245124,-505.39359749,0.00016438,2]
[366389677,1750228245133,-490.0,0.00016438,2]
[366389678,1750228245143,-1349.21,0.00016438,2]
[366389679,1750228245153,-493.55324761,0.00016438,2]
[366389680,1750228245162,-490.0,0.00016438,2]
[366389681,1750228245172,-490.0,0.00016438,2]
[366389682,1750228245181,-1085.53,0.00016438,2]
[366389683,1750228245191,-1198.25,0.00016438,2]
[366389684,1750228245201,-602.22,0.00016438,2]
[366389685,1750228245211,-492.23124007,0.00016438,2]
[366389686,1750228245220,-1324.35,0.00016438,2]
[366389687,1750228245230,-490.0,0.00016438,2]
[366389688,1750228245240,-490.0,0.00016438,2]
[366389689,1750228245250,-1950.78,0.00016438,2]
[366389690,1750228245260,-631.56,0.00016438,2]
[366389691,1750228245271,-490.0,0.00016438,2]
[366389692,1750228245280,-490.0,0.00016438,2]
[366389693,1750228245290,-460.0,0.00016438,2]
[366389694,1750228245300,-608.03555425,0.00016438,2]
[366389695,1750228245310,-2472.57,0.00016438,2]
[366389696,1750228245320,-490.0,0.00016438,2]
[366389697,1750228245642,-1785.85,0.00016438,2]
[366389698,1750228245670,-490.8852791,0.00016438,2]
[366389699,1750228245680,-490.0,0.00016438,2]
[366389700,1750228245690,-422.30403716,0.00016438,2]
[366389701,1750228245699,-490.0,0.00016438,2]
[366389702,1750228245709,-604.04,0.00016438,2]
[366389703,1750228245718,-561.79,0.00016438,2]
[366389704,1750228245728,-490.0,0.00016438,2]
[366389705,1750228245738,-496.92052329,0.00016438,2]
[366389706,1750228245747,-495.70409083,0.00016438,2]
[366389707,1750228245757,-1534.27,0.00016438,2]
[366389708,1750228245767,-490.0,0.00016438,2]
[366389709,1750228245776,-490.0,0.00016438,2]
[366389710,1750228245786,-490.0,0.00016438,2]
[366389711,1750228245796,-490.0,0.00016438,2]
[366389712,1750228245806,-617.04,0.00016438,2]
[366389713,1750228245816,-1565.84,0.00016438,2]
[366389714,1750228245826,-490.0,0.00016438,2]
[366389715,1750228245836,-2447.45,0.00016438,2]
[366389716,1750228245845,-490.0,0.00016438,2]
[366389717,1750228245855,-644.77,0.00016438,2]
[366389718,1750228245865,-799.94,0.00016438,2]
[366389719,1750228245875,-491.60441273,0.00016438,2]
[366389720,1750228245884,-153.718015,0.00016438,2]
[366389721,1750228245894,-492.3386721,0.00016438,2]
[366389722,1750228245904,-490.0,0.00016438,2]
[366389723,1750228245914,-581.61,0.00016438,2]
[366389724,1750228245923,-492.44494609,0.00016438,2]
[366389725,1750228245938,-490.0,0.00016438,2]
[366389726,1750228245947,-552.49,0.00016438,2]
[366389727,1750228245957,-473.14624847,0.00016438,2]
[366389728,1750228245967,-751.78,0.00016438,2]
[366389729,1750228245977,-1757.44,0.00016438,2]
[366389730,1750228245987,-687.4,0.00016438,2]
[366389731,1750228245997,-510.90969628,0.00016438,2]
[366389732,1750228246008,-174.51989682,0.00016438,2]
[366389733,1750228246018,-490.0,0.00016438,2]
[366389734,1750228246028,-593.86,0.00016438,2]
[366389735,1750228246038,-680.76,0.00016438,2]
[366389736,1750228246047,-688.59,0.00016438,2]
[366389737,1750228246057,-490.0,0.00016438,2]
[366389738,1750228246067,-490.0,0.00016438,2]
[366389739,1750228246077,-154.271015,0.00016438,2]
[366389740,1750228246087,-490.0,0.00016438,2]
[366389741,1750228246097,-490.0,0.00016438,2]
[366389742,1750228246107,-490.0,0.00016438,2]
[366389743,1750228246117,-495.0737645,0.00016438,2]
[366389744,1750228246127,-1841.51,0.00016438,2]
[366389745,1750228246137,-490.0,0.00016438,2]
[366389746,1750228246146,-1182.93,0.00016438,2]
[366389747,1750228246156,-490.0,0.00016438,2]
[366389748,1750228246166,-151.0,0.00016438,2]
[366389749,1750228246176,-151.0,0.00016438,2]
[366389750,1750228246185,-490.0,0.00016438,2]
[366389751,1750228246195,-491.14106965,0.00016438,2]
[366389752,1750228246204,-151.0,0.00016438,2]
[366389753,1750228246214,-151.0,0.00016438,2]
[366389754,1750228246223,-152.379308,0.00016438,2]
[366389755,1750228246233,-154.783496,0.00016438,2]
[366389756,1750228246244,-502.78,0.00016438,2]
[366389757,1750228246253,-490.0,0.00016438,2]
[366389758,1750228246263,-490.29,0.00016438,2]
[366389759,1750228246272,-2057.82,0.00016438,2]
[366389760,1750228246282,-490.0,0.00016438,2]
[366389761,1750228246292,-490.0,0.00016438,2]
[366389762,1750228246302,-490.0,0.00016438,2]
[366389763,1750228246312,-490.0,0.00016438,2]
[366389764,1750228246322,-151.0,0.00016438,2]
[366389765,1750228246331,-151.0,0.00016438,2]
[366389766,1750228246341,-490.0,0.00016438,2]
[366389767,1750228246350,-151.0,0.00016438,2]
[366389768,1750228246360,-1728.94,0.00016438,2]
[366389769,1750228246370,-490.0,0.00016438,2]
[366389770,1750228246380,-1130.61,0.00016438,2]
[366389771,1750228246390,-151.0,0.00016438,2]
[366389772,1750228246399,-602.72,0.00016438,2]
[366389773,1750228246409,-151.0,0.00016438,2]
[366389774,1750228246419,-151.0,0.00016438,2]
[366389775,1750228246428,-151.0,0.00016438,2]
[366389776,1750228246438,-151.0,0.00016438,2]
[366389777,1750228246448,-490.0,0.00016438,2]
[366389778,1750228246458,-1211.07,0.00016438,2]
[366389779,1750228246468,-490.0,0.00016438,2]
[366389780,1750228246477,-152.042463,0.00016438,2]
[366389781,1750228246487,-1039.44,0.00016438,2]
[366389782,1750228246497,-535.02,0.00016438,2]
[366389783,1750228246507,-490.0,0.00016438,2]
[366389784,1750228246517,-492.32452562,0.00016438,2]
[366389785,1750228246527,-632.32,0.00016438,2]
[366389786,1750228246536,-490.0,0.00016438,2]
[366389787,1750228246545,-490.0,0.00016438,2]
[366389788,1750228246555,-327.541133,0.00016438,2]
[366389790,1750228246568,-327.541133,0.00016438,2]
[366389792,1750228246577,-327.541133,0.00016438,2]
[366389794,1750228246586,-327.541133,0.00016438,2]
[366389796,1750228246596,-490.0,0.00016438,2]
[366389798,1750228246606,-327.541133,0.00016438,2]
[366389800,1750228246616,-327.541133,0.00016438,2]
[366389802,1750228246626,-327.541133,0.00016438,2]
[366389804,1750228246636,-327.541133,0.00016438,2]
[366389806,1750228246646,-327.541133,0.00016438,2]
[366389808,1750228246655,-327.541133,0.00016438,2]
[366389810,1750228246665,-1450.05,0.00016438,2]
[366389812,1750228246674,-327.541133,0.00016438,2]
[366389814,1750228246683,-327.541133,0.00016438,2]
[366389815,1750228246693,-490.0,0.00016438,2]
[366389816,1750228246703,-327.541133,0.00016438,2]
[366389817,1750228246713,-1191.23,0.00016438,2]
[366389818,1750228246722,-658.83,0.00016438,2]
[366389819,1750228246732,-327.541139,0.00016438,2]
[366389820,1750228246742,-490.0,0.00016438,2]
[366389821,1750228246752,-1957.38,0.00016438,2]
[366389822,1750228246762,-490.0,0.00016438,2]
[366389823,1750228246771,-2010.37,0.00016438,2]
[366389825,1750228246781,-1218.56,0.00016438,2]
[366389827,1750228246790,-490.0,0.00016438,2]
[366389828,1750228246800,-490.0,0.00016438,2]
[366389829,1750228246810,-490.0,0.00016438,2]
[366389830,1750228246820,-778.8,0.00016438,2]
[366389831,1750228246830,-490.0,0.00016438,2]
[366389832,1750228246839,-152.357431,0.00016438,2]
[366389833,1750228246849,-873.25,0.00016438,2]
[366389834,1750228246859,-490.0,0.00016438,2]
[366389835,1750228246869,-492.70544911,0.00016438,2]
[366389836,1750228246879,-1297.98,0.00016438,2]
[366389837,1750228246888,-495.31079342,0.00016438,2]
[366389838,1750228246898,-490.0,0.00016438,2]